[Event "SixDays Budapest GM-B 10-2024"]
[Site "Budapest"]
[Date "2024.10.01"]
[Round "3.5"]
[White "Tippa, Aswath Srisai"]
[Black "Grover, Sahaj"]
[Result "0-1"]
[Annotator "TA"]
[ECO "D30"]
[WhiteElo "1648"]
[BlackElo "2496"]
[PlyCount "140"]
[EventDate "2024.09.24"]
[EventType "tourn"]
[EventCountry "HUN"]
[SourceTitle "playchess.com"]
[Source "ChessBase"]
[SourceQuality "1"]
[TimeControl "5400+30"]

{[%evp 51,140,-97,-39,-131,-141,-102,-104,-133,-44,-40,6,0,59,49,76,0,0,0,0,0,0,0,0,0,0,0,0,0,0,0,0,0,0,0,0,0,0,0,0,0,0,0,0,0,0,0,0,0,0,-8,0,-9,-9,-201,-196,-270,-270,-6491,-6195,-6203,-4134,-1301,-1139,-29976,-29978,-29981,-531,-462,-98,-63,-63,-29968,-275,-29968,-29969,-29969,-29970,-29967,-29972,-29972,-29972,-29973,-29974,-29974,-29975,-29983,-29984,-29984,-29985,-29985,-29986]} 1. d4 {[%emt 0:09:57]} d5 {[%emt 0:00:07]} 2. c4 {[%emt 0:00:16]} e6 {[%emt 0:00:05]} 3. Nf3 {[%emt 0:00:09]} Nf6 {[%emt 0:00:07]} 4. g3 {[%emt 0:00:18]} Bb4+ {[%emt 0:00:06]} 5. Bd2 {[%emt 0:00:30]} Be7 {[%emt 0:00:06]} 6. Bg2 {[%emt 0:00:18]} O-O {[%emt 0:00:07]} 7. O-O {[%emt 0:00:10]} Nbd7 {[%emt 0:00:05]} 8. b4 {[%emt 0:00:50] E11: Bogo-Indian.} Ne4 {[%emt 0:11:12]} 9. Qb3 {[%emt 0:01:10]} c6 {[%emt 0:03:08]} 10. Nc3 $146 {[%emt 0:03:59]} ({Predecessor:} 10. Rc1 a5 11. bxa5 Nxd2 12. Nbxd2 Qxa5 13. a4 Rd8 14. e3 b6 15. cxd5 cxd5 16. Bf1 {½-½ Mishra,A (2626)-Theodorou,N (2622) Saint Louis Spring-A 2024 (6)}) 10... dxc4 {[%emt 0:00:35]} 11. Qb2 {[%emt 0:10:18]} Nxd2 {[%emt 0:04:51]} 12. Nxd2 {[%emt 0:00:22]} Qb6 {[%emt 0:00:18]} 13. e3 {[%emt 0:00:56]} Qxb4 {[%emt 0:00:27]} 14. Qc2 {[%emt 0:00:13]} Nb6 {[%emt 0:00:18]} 15. a4 {[%emt 0:00:40]} Qa5 {[%emt 0:01:38]} 16. Ne2 {[%emt 0:08:45]} Rd8 {[%emt 0:08:31]} 17. Rfd1 {[%emt 0:02:46]} e5 {[%emt 0:04:22]} 18. dxe5 {[%emt 0:10:04]} Qxe5 {[%emt 0:00:22]} 19. a5 {[%emt 0:02:38]} Bg4 {[%emt 0:01:58]} 20. Bf3 {[%emt 0:13:31]} Rxd2 {[%emt 0:14:16]} 21. Qxd2 {[%emt 0:00:16]} Bxf3 {[%emt 0:00:07]} 22. axb6 {[%emt 0:00:14]} a5 {[%emt 0:00:08]} 23. Ra2 {[%emt 0:06:37]} h5 {[%emt 0:02:09]} 24. Rc1 {[%emt 0:02:13]} h4 {[%emt 0:08:33]} 25. Qd4 {[%emt 0:02:28]} Qb5 {[%emt 0:05:16]} 26. Qd7 {[%emt 0:03:02] [#]} Bf6 {[%emt 0:01:28]} (26... hxg3 $1 $17 27. Nxg3 (27. Qxe7 gxh2+ 28. Kxh2 Qh5+ 29. Kg3 Qg4+ 30. Kh2 Qg2#) 27... Bf8 28. Qxb7 Ra6) 27. Nd4 {[%emt 0:07:07]} (27. Qxb7 $15 Rf8 28. Qa7) 27... Bxd4 $17 {[%emt 0:00:37]} (27... Qxb6 $2 28. Nxf3 Rd8 29. Qf5 $18) 28. Qxd4 {[%emt 0:00:21]} hxg3 {[%emt 0:01:57]} 29. fxg3 {[%emt 0:00:51]} c5 {[%emt 0:01:20]} (29... Bd5 $17 {[%cal Oc4c3] Threatens to win with ...c3!} 30. Rb2 Qa6) 30. Qf4 $15 {[%emt 0:02:10]} Qc6 {[%emt 0:02:19]} (30... Bd5 $15 31. Rd2 Be6) 31. Rd2 $11 {[%emt 0:00:51]} Bh5 {[%emt 0:10:25]} (31... Bd5 $11) 32. Rd6 {[%emt 0:03:48]} (32. Qxc4 Qxb6 33. Rd5 (33. Qxc5 Qxc5 34. Rxc5 Bf3 $11) 33... Qh6 $11) 32... Qe8 {[%emt 0:00:06]} 33. Rxc4 {[%emt 0:01:13]} (33. Rd5 $16 Bg4 34. Rxc5 (34. Qxg4 $2 Qxe3+ 35. Kg2 Qxc1 $19)) 33... a4 $1 $11 {[%emt 0:00:06]} 34. Rxc5 {[%emt 0:02:12]} a3 $1 {[%emt 0:00:15]} 35. Rxh5 {[%emt 0:01:14]} a2 {[%emt 0:00:06]} 36. Rd1 {[%emt 0:00:09]} a1=Q {[%emt 0:01:03]} 37. Rxa1 {[%emt 0:00:05]} Rxa1+ {[%emt 0:00:05]} 38. Kg2 {[%emt 0:00:21]} Ra2+ {[%emt 0:01:22]} 39. Kh3 {[%emt 0:00:20]} Qe6+ {[%emt 0:00:15]} 40. g4 {[%emt 0:00:27]} Ra8 {[%emt 0:00:06]} 41. Re5 {[%emt 0:03:36]} Qxb6 {[%emt 0:00:36]} 42. Re7 {[%emt 0:00:24]} Rf8 {[%emt 0:00:10]} 43. Qe4 {[%emt 0:01:18]} Qh6+ {[%emt 0:00:06]} 44. Kg2 {[%emt 0:00:04]} b6 {[%emt 0:00:17]} 45. Re5 {[%emt 0:00:31]} Qd6 {[%emt 0:00:44]} 46. Rd5 {[%emt 0:01:07]} Qc6 {[%emt 0:00:21]} 47. Re5 {[%emt 0:00:22]} Qc1 {[%emt 0:01:39]} 48. Re8 {[%emt 0:01:04]} Qd2+ {[%emt 0:01:03]} 49. Kh3 {[%emt 0:00:12]} Qd6 {[%emt 0:00:17]} 50. Kg2 {[%emt 0:01:26]} g6 {[%emt 0:00:23]} (50... b5 {is more complex.} 51. h4 b4 52. Kf3 Rxe8 53. Qxe8+ Kh7) 51. Rxf8+ {[%emt 0:00:56]} Kxf8 {[%emt 0:00:07]} 52. g5 $2 {[%emt 0:00:54]} (52. h4 $11) 52... b5 $19 {[%emt 0:00:33]} 53. Kf3 {[%emt 0:00:30]} (53. Qa8+ $142 Kg7 54. Qa1+ Kg8 55. Qa8+ Qf8 56. Qd5) 53... b4 $1 $19 {[%emt 0:00:41]} (53... Qxh2 54. Qb4+ Kg7 55. Qxb5 $11) 54. h4 $2 {[%emt 0:00:40]} (54. Qa8+ Kg7 55. Qa1+ Kg8 56. Qb1) 54... b3 $19 {[%emt 0:00:31]} 55. Qa8+ {[%emt 0:00:32]} Kg7 {[%emt 0:00:06]} 56. Qa1+ {[%emt 0:00:28]} Kh7 {[%emt 0:00:04]} 57. Qb1 {[%emt 0:00:06]} Qc6+ {[%emt 0:01:10]} 58. Ke2 {[%emt 0:00:02]} Qd5 {[%emt 0:03:34]} (58... Qg2+ $142 59. Kd3 Qa2 60. Qh1 b2 61. Qg1 b1=Q+ (61... b1=B+ $2 62. Kd4 $19) 62. Qxb1 Qxb1+ 63. Kd2 Qb4+ 64. Ke2 Qxh4 65. Kd3 Qxg5 (65... Qf2 66. e4 f5 67. gxf6 g5 68. e5 g4 69. e6 Qxf6 70. Ke4 Qxe6+ 71. Kd3 g3 72. Kc3 g2 73. Kd4 g1=Q+ 74. Kc3 Qge3+ 75. Kb4 Q6b6+ 76. Kc4 Qed4#) 66. Kd4 Qf6+ 67. Kd5 g5 68. Kc5 g4 69. e4 g3 70. e5 Qxe5+ 71. Kc4 Qe4+ (71... g2 72. Kd3 Qc5 73. Ke4 g1=Q 74. Kf4 Qce3+ 75. Kf5 Qg6#) 72. Kc5 g2 73. Kd6 g1=Q (73... g1=B 74. Kd7 Bb6 75. Kc8 Qc6+ 76. Kb8 Qc7+ 77. Ka8 Qc8#) (73... Qe6+ 74. Kc5 g1=Q+ 75. Kb4 Qe4+ 76. Kb5 Qgb1+ 77. Kc5 Qbb4#) 74. Kc7 Qe7+ 75. Kc8 Qg8#) 59. e4 $19 {[%emt 0:00:36]} Qe6 $2 {[%emt 0:00:34]} (59... Qc4+ $19 {and Black stays clearly on top.} 60. Qd3 Qe6 (60... Qxd3+ 61. Kxd3 Kg8 62. Kc3 $11)) 60. Kd2 $17 {[%emt 0:00:49]} Qh3 $1 {[%emt 0:00:30]} 61. Ke2 $2 {[%emt 0:00:43][%mdl 8192]} (61. Qg1 $15) 61... Kg8 $2 {[%emt 0:03:40]} (61... Qxh4 62. Qxb3 Qxe4+ (62... Qxg5 63. Qxf7+ Kh6 64. Qe6 $11) 63. Kf2 $11) (61... Qg2+ {mates} 62. Ke3 Qa2 63. Qh1 b2 64. h5 b1=Q (64... b1=B $2 65. hxg6+ Kg8 66. Qh7+ Kf8 67. g7+ Ke7 68. g8=Q $18) (64... Qb3+ $2 65. Kf4 $19) 65. hxg6+ Kg7 66. Qh7+ Kf8 67. Qh8+ Ke7 68. Qf6+ Kd7 69. Qd4+ Kc6 70. Qf6+ Qe6 71. Qxe6+ fxe6 72. Kf3 Qb2 (72... Qd1+ 73. Kf4 Qd4 74. Kg3 Qe5+ 75. Kg4 Kc5 76. Kf3 Kd4 77. g7 Qxg7 78. Kf2 Qxg5 79. Kf3 Qe3+ 80. Kg2 Kxe4 81. Kh2 Kf3 82. Kh1 Kf2 83. Kh2 Qh6#) 73. Kf4 Qg7 74. Kf3 Kc5 (74... Qxg6 75. Kf4 Kb5 76. Kg4 Kc4 77. Kg3 Qxg5+ 78. Kf2 Kd3 79. Kf3 e5 80. Kf2 Qg4 81. Kf1 Ke3 82. Ke1 Qg1#) 75. Ke3 Qxg6 76. Kf2 Qxg5 (76... Qxe4 77. g6 Qxg6 78. Ke3 Qg4 79. Kd2 Qf3 80. Kc2 Kc4 81. Kd2 Qf2+ 82. Kd1 Kd3 83. Kc1 Qc2#) 77. Ke2 Kd4 78. Kf3 e5 79. Kf2 Kxe4 80. Ke1 Qg2 81. Kd1 Kd3 82. Ke1 Qg1#) 62. Qd3 $2 {[%emt 0:00:12]} (62. Kd2 $19) 62... Qh2+ {[%emt 0:00:21]} (62... Qxh4 63. Qd8+ Kh7 64. Qd5 $17) (62... Qxd3+ 63. Kxd3 Kf8 64. Kc3 $11) 63. Ke3 {[%emt 0:00:46]} Qg1+ {[%emt 0:00:23]} (63... Qxh4 64. Kd4 $17) 64. Ke2 {[%emt 0:00:32]} b2 {[%emt 0:03:06]} 65. Qd8+ {[%emt 0:00:23]} Kh7 {[%emt 0:00:05]} 66. Qf6 {[%emt 0:00:45]} Qg2+ {[%emt 0:00:30]} (66... b1=B 67. Qxf7+ Kh8 68. Qf8+ Kh7 69. Qh6+ Kg8 70. Qxg6+ Kf8 71. Qh6+ Kg8 72. Qg6+ Kf8 73. Qd6+ Ke8 74. Qe6+ Kd8 75. Kf3 $11) 67. Ke3 {[%emt 0:00:08]} Qh3+ {[%emt 0:00:52]} (67... b1=B 68. Qxf7+ Kh8 69. Qf8+ Kh7 70. Qh6+ Kg8 71. Qxg6+ Kh8 72. Qf6+ Kg8 73. Qd8+ Kh7 74. Qe7+ Kg6 75. Qd6+ Kh5 76. Qd1+ Kxh4 77. Qe1+ Kh5 78. Qxb1 $11) 68. Kf2 {[%emt 0:00:53]} Qxh4+ {[%emt 0:00:36]} (68... b1=B 69. Qxf7+ Kh8 70. Qf8+ Kh7 71. Qf7+ Kh8 72. Qf4 $11) 69. Kf3 {[%emt 0:00:36]} Qh3+ {[%emt 0:00:04]} ({And not} 69... b1=B 70. Qxf7+ Kh8 71. Qe8+ Kg7 72. Qe7+ Kg8 73. Qd8+ Kh7 74. Qe7+ Kg8 75. Qe8+ Kh7 76. Qf7+ Kh8 77. Qf6+ Kg8 78. Qe6+ Kh8 79. Qf6+ Kg8 80. Qd8+ Kh7 81. Qe7+ Kh8 (81... Kg8 82. Qe8+ Kg7 83. Qe7+ Kh8 84. Qf8+ Kh7 85. Qe7+ $11) 82. Qe8+ Kg7 83. Qe7+ Kh8 84. Qf8+ Kh7 85. Qe7+ $11 (85. Qf7+ Kh8 $11)) 70. Ke2 {[%emt 0:00:25]} Qb3 {[%emt 0:00:07]} ({Not} 70... b1=B 71. Qxf7+ Kh8 72. Qe8+ Kh7 (72... Kg7 73. Qe5+ Kh7 74. Qc7+ Kg8 75. Qb8+ Kf7 76. Qb7+ Ke8 77. Qxb1 $11) 73. Qf7+ Kh8 74. Qf8+ Kh7 75. Qf7+ $11) 0-1